[Event "Live Chess"]
[Site "Chess.com"]
[Date "2023.05.21"]
[Round "-"]
[White "MaximKris"]
[Black "hturner40"]
[Result "1/2-1/2"]
[WhiteElo "1810"]
[BlackElo "1782"]
[TimeControl "300"]
[EndTime "1:55:18 PDT"]
[Termination "Game drawn by repetition"]

1. e4 {[%clk 0:04:59.5]} 1... Nc6 {[%clk 0:04:57.8]} 2. Nf3 {[%clk 0:04:58.6]}
2... e5 {[%clk 0:04:56.8]} 3. Nc3 {[%clk 0:04:57.5]} 3... Nf6 {[%clk 0:04:54.7]}
4. Bc4 {[%clk 0:04:56.9]} 4... Nxe4 {[%clk 0:04:52.2]} 5. Nxe4 {[%clk
0:04:53.7]} 5... d5 {[%clk 0:04:50.9]} 6. Bd3 {[%clk 0:04:53.6]} 6... dxe4
{[%clk 0:04:49.7]} 7. Bxe4 {[%clk 0:04:53.5]} 7... Bd6 {[%clk 0:04:48.3]} 8. O-O
{[%clk 0:04:52.4]} 8... O-O {[%clk 0:04:47]} 9. d3 {[%clk 0:04:52]} 9... Bg4
{[%clk 0:04:43.2]} 10. h3 {[%clk 0:04:50.6]} 10... Bh5 {[%clk 0:04:41.5]} 11. g4
{[%clk 0:04:47.6]} 11... Bg6 {[%clk 0:04:39.7]} 12. Bxg6 {[%clk 0:04:46.3]}
12... fxg6 {[%clk 0:04:28]} 13. Bg5 {[%clk 0:04:42]} 13... Qd7 {[%clk
0:04:25.6]} 14. Re1 {[%clk 0:04:38.9]} 14... Qf7 {[%clk 0:04:21.6]} 15. Kg2
{[%clk 0:03:58.2]} 15... Nd4 {[%clk 0:04:13.3]} 16. Re3 {[%clk 0:03:52.3]} 16...
Bc5 {[%clk 0:04:05]} 17. c3 {[%clk 0:03:48.4]} 17... Nc6 {[%clk 0:04:02.4]} 18.
Re4 {[%clk 0:03:43.4]} 18... Rad8 {[%clk 0:03:54.5]} 19. Qe2 {[%clk 0:03:29.7]}
19... Rde8 {[%clk 0:03:44.3]} 20. Rf1 {[%clk 0:03:08.4]} 20... Qd5 {[%clk
0:03:41.8]} 21. c4 {[%clk 0:03:02.2]} 21... Qd6 {[%clk 0:03:31.5]} 22. h4 {[%clk
0:02:39]} 22... Nd4 {[%clk 0:03:27.7]} 23. Nxd4 {[%clk 0:02:35.9]} 23... Bxd4
{[%clk 0:03:26.2]} 24. b3 {[%clk 0:02:32.3]} 24... h6 {[%clk 0:03:06.4]} 25. Be3
{[%clk 0:02:29.2]} 25... c5 {[%clk 0:02:57.8]} 26. Bxd4 {[%clk 0:02:27]} 26...
cxd4 {[%clk 0:02:55.3]} 27. f3 {[%clk 0:02:24.4]} 27... Re6 {[%clk 0:02:42]} 28.
f4 {[%clk 0:02:02.5]} 28... Qe7 {[%clk 0:02:39.2]} 29. f5 {[%clk 0:01:54.4]}
29... gxf5 {[%clk 0:02:27.6]} 30. gxf5 {[%clk 0:01:51.6]} 30... Ra6 {[%clk
0:02:15.2]} 31. Kh3 {[%clk 0:01:32.3]} 31... Qa3 {[%clk 0:01:57.4]} 32. Rxe5
{[%clk 0:01:27.5]} 32... Qxa2 {[%clk 0:01:56.4]} 33. Qxa2 {[%clk 0:01:26.3]}
33... Rxa2 {[%clk 0:01:55.3]} 34. Rd5 {[%clk 0:01:24.7]} 34... Rb2 {[%clk
0:01:51.2]} 35. Rxd4 {[%clk 0:01:22.9]} 35... Rxb3 {[%clk 0:01:50.3]} 36. Rd7
{[%clk 0:01:21.7]} 36... a5 {[%clk 0:01:44.7]} 37. Kg4 {[%clk 0:01:15.9]} 37...
a4 {[%clk 0:01:40.1]} 38. Kh5 {[%clk 0:01:14.9]} 38... a3 {[%clk 0:01:35.2]} 39.
Rg1 {[%clk 0:01:13]} 39... Rf6 {[%clk 0:01:29.9]} 40. Rgxg7+ {[%clk 0:01:00.5]}
40... Kf8 {[%clk 0:01:25.9]} 41. Rh7 {[%clk 0:00:58.7]} 41... Ke8 {[%clk
0:01:14.1]} 42. Rc7 {[%clk 0:00:55.4]} 42... Kd8 {[%clk 0:01:08.5]} 43. Rhd7+
{[%clk 0:00:48]} 43... Ke8 {[%clk 0:01:06.6]} 44. Re7+ {[%clk 0:00:46.9]} 44...
Kf8 {[%clk 0:01:05.4]} 45. Rh7 {[%clk 0:00:30.5]} 45... Kg8 {[%clk 0:01:03.9]}
46. Rcg7+ {[%clk 0:00:16.7]} 46... Kf8 {[%clk 0:01:01.9]} 47. Rc7 {[%clk
0:00:16]} 47... Kg8 {[%clk 0:00:56.4]} 48. Rhg7+ {[%clk 0:00:13.1]} 48... Kf8
{[%clk 0:00:54.4]} 49. Rh7 {[%clk 0:00:12.3]} 1/2-1/2

[Event "Live Chess"]
[Site "Chess.com"]
[Date "2023.05.21"]
[Round "-"]
[White "ProfPoisson"]
[Black "HoarseyHorsey"]
[Result "1-0"]
[WhiteElo "1217"]
[BlackElo "1454"]
[TimeControl "300"]
[EndTime "1:55:21 PDT"]
[Termination "ProfPoisson won by resignation"]

1. e4 {[%clk 0:04:56.9]} 1... c5 {[%clk 0:04:59]} 2. Nf3 {[%clk 0:04:54.3]} 2...
e6 {[%clk 0:04:58.1]} 3. c3 {[%clk 0:04:51.8]} 3... d5 {[%clk 0:04:56.9]} 4. e5
{[%clk 0:04:47.9]} 4... Nc6 {[%clk 0:04:55.6]} 5. d4 {[%clk 0:04:45.1]} 5... g6
{[%clk 0:04:41.2]} 6. Bd3 {[%clk 0:04:32.3]} 6... c4 {[%clk 0:04:39.7]} 7. Bc2
{[%clk 0:04:28.4]} 7... Bg7 {[%clk 0:04:35.2]} 8. Be3 {[%clk 0:04:24.8]} 8...
Nge7 {[%clk 0:04:33.2]} 9. Qd2 {[%clk 0:04:23.1]} 9... O-O {[%clk 0:04:30.7]}
10. Bh6 {[%clk 0:04:20.7]} 10... Nf5 {[%clk 0:04:28.3]} 11. Bxg7 {[%clk
0:04:17.7]} 11... Nxg7 {[%clk 0:04:25.7]} 12. h4 {[%clk 0:04:10.1]} 12... h5
{[%clk 0:04:23.1]} 13. Qh6 {[%clk 0:04:02.7]} 13... Nf5 {[%clk 0:04:16.6]} 14.
Bxf5 {[%clk 0:03:57.9]} 14... exf5 {[%clk 0:04:16.5]} 15. Ng5 {[%clk 0:03:55.8]}
15... Qxg5 {[%clk 0:04:15.3]} 16. Qxg5 {[%clk 0:03:53.2]} 16... b5 {[%clk
0:04:08]} 17. Nd2 {[%clk 0:03:49.8]} 17... b4 {[%clk 0:04:06.4]} 18. f3 {[%clk
0:03:34.2]} 18... bxc3 {[%clk 0:04:01.6]} 19. bxc3 {[%clk 0:03:31.8]} 19... Be6
{[%clk 0:03:55]} 20. Rb1 {[%clk 0:03:25.7]} 20... Rab8 {[%clk 0:03:51]} 21. Rxb8
{[%clk 0:03:22.7]} 21... Rxb8 {[%clk 0:03:50.9]} 22. O-O {[%clk 0:03:20.8]}
22... Rb2 {[%clk 0:03:49.9]} 23. Rb1 {[%clk 0:03:14.2]} 23... Rxa2 {[%clk
0:03:26]} 24. g4 {[%clk 0:03:00.3]} 24... fxg4 {[%clk 0:03:20.8]} 25. fxg4
{[%clk 0:02:58]} 25... Bxg4 {[%clk 0:03:19.8]} 26. Rb8+ {[%clk 0:02:49]} 26...
Nxb8 {[%clk 0:03:18.1]} 27. Qd8+ {[%clk 0:02:47.2]} 27... Kg7 {[%clk 0:03:16.9]}
28. Qxb8 {[%clk 0:02:43.8]} 28... Rxd2 {[%clk 0:03:13.3]} 29. Qd6 {[%clk
0:02:32.1]} 29... Rd3 {[%clk 0:03:02.8]} 30. Qxd5 {[%clk 0:02:25.4]} 30... Rg3+
{[%clk 0:02:55]} 31. Kf2 {[%clk 0:02:05.8]} 31... Rxc3 {[%clk 0:02:53.6]} 32. e6
{[%clk 0:02:00.5]} 32... Bxe6 {[%clk 0:02:48.3]} 33. Qe5+ {[%clk 0:01:57.7]}
33... Kg8 {[%clk 0:02:41.3]} 34. d5 {[%clk 0:01:52.6]} 34... Rc2+ {[%clk
0:02:32.8]} 35. Ke3 {[%clk 0:01:47.7]} 35... Bf5 {[%clk 0:02:24.4]} 36. Qb8+
{[%clk 0:01:38.8]} 36... Kg7 {[%clk 0:02:22.9]} 37. Qxa7 {[%clk 0:01:37.5]}
37... Rc1 {[%clk 0:02:11.5]} 38. Qd4+ {[%clk 0:01:29.9]} 38... Kg8 {[%clk
0:02:03.4]} 39. d6 {[%clk 0:01:28.4]} 39... Re1+ {[%clk 0:01:53.7]} 40. Kd2
{[%clk 0:01:23.2]} 40... Rh1 {[%clk 0:01:42.9]} 41. d7 {[%clk 0:01:17.4]} 41...
Bxd7 {[%clk 0:01:41.7]} 42. Qxd7 {[%clk 0:01:14.4]} 42... Rxh4 {[%clk
0:01:39.3]} 43. Qd8+ {[%clk 0:01:11.5]} 1-0

[Event "Live Chess"]
[Site "Chess.com"]
[Date "2023.05.21"]
[Round "-"]
[White "Ian-Morley"]
[Black "chessfiction"]
[Result "0-1"]
[WhiteElo "1077"]
[BlackElo "2332"]
[TimeControl "300"]
[EndTime "1:55:40 PDT"]
[Termination "chessfiction won by resignation"]

1. e4 {[%clk 0:04:55.5]} 1... e5 {[%clk 0:04:58.7]} 2. Nf3 {[%clk 0:04:53.1]}
2... d5 {[%clk 0:04:58.6]} 3. exd5 {[%clk 0:04:52.1]} 3... e4 {[%clk 0:04:57.2]}
4. Nd4 {[%clk 0:04:49.1]} 4... Qxd5 {[%clk 0:04:56]} 5. c3 {[%clk 0:04:46.9]}
5... Bc5 {[%clk 0:04:52.2]} 6. Qa4+ {[%clk 0:04:43.7]} 6... Bd7 {[%clk
0:04:49.6]} 7. Bb5 {[%clk 0:04:40.9]} 7... c6 {[%clk 0:04:48.1]} 8. Bc4 {[%clk
0:04:37.8]} 8... Qg5 {[%clk 0:04:45.5]} 9. O-O {[%clk 0:04:21.1]} 9... Bh3
{[%clk 0:04:42.5]} 10. g3 {[%clk 0:04:03.2]} 10... Nf6 {[%clk 0:04:34.6]} 11. d3
{[%clk 0:03:59.9]} 11... Qh5 {[%clk 0:04:33.2]} 12. Bxf7+ {[%clk 0:03:55.6]}
12... Kxf7 {[%clk 0:04:27.8]} 13. Qc4+ {[%clk 0:03:54.4]} 13... Ke7 {[%clk
0:04:23.3]} 14. Re1 {[%clk 0:03:46.9]} 14... Bxd4 {[%clk 0:04:20.4]} 15. cxd4
{[%clk 0:03:44.9]} 15... Qf3 {[%clk 0:04:17]} 16. Qc5+ {[%clk 0:03:41.3]} 16...
Kd7 {[%clk 0:04:13.5]} 17. Qf5+ {[%clk 0:03:12.7]} 17... Bxf5 {[%clk 0:04:10.8]}
18. dxe4 {[%clk 0:03:10.5]} 18... Bh3 {[%clk 0:04:09.5]} 0-1

[Event "Live Chess"]
[Site "Chess.com"]
[Date "2023.05.21"]
[Round "-"]
[White "MarkLim1"]
[Black "JoeyCage"]
[Result "0-1"]
[WhiteElo "1721"]
[BlackElo "2306"]
[TimeControl "300"]
[EndTime "1:55:40 PDT"]
[Termination "JoeyCage won by resignation"]

1. d4 {[%clk 0:04:58.4]} 1... d5 {[%clk 0:04:56.4]} 2. Nf3 {[%clk 0:04:57.5]}
2... e6 {[%clk 0:04:55.1]} 3. c4 {[%clk 0:04:56.7]} 3... c6 {[%clk 0:04:53.7]}
4. e3 {[%clk 0:04:54.3]} 4... f5 {[%clk 0:04:52.3]} 5. b3 {[%clk 0:04:52.3]}
5... Nf6 {[%clk 0:04:51]} 6. Ba3 {[%clk 0:04:51.3]} 6... Bxa3 {[%clk 0:04:48.7]}
7. Nxa3 {[%clk 0:04:45.5]} 7... Qa5+ {[%clk 0:04:46.6]} 8. Qd2 {[%clk
0:04:42.4]} 8... Qxa3 {[%clk 0:04:44.8]} 9. Bd3 {[%clk 0:04:42.3]} 9... O-O
{[%clk 0:04:42]} 10. h3 {[%clk 0:04:42.2]} 10... Ne4 {[%clk 0:04:40.8]} 11. Bxe4
{[%clk 0:04:39.6]} 0-1

[Event "Live Chess"]
[Site "Chess.com"]
[Date "2023.05.21"]
[Round "-"]
[White "yeetpizza74"]
[Black "rasrae1364"]
[Result "0-1"]
[WhiteElo "465"]
[BlackElo "1739"]
[TimeControl "300"]
[EndTime "1:55:41 PDT"]
[Termination "rasrae1364 won by checkmate"]

1. e4 {[%clk 0:04:57]} 1... e5 {[%clk 0:04:50.4]} 2. Nf3 {[%clk 0:04:55.8]} 2...
Nc6 {[%clk 0:04:45]} 3. Bc4 {[%clk 0:04:54.3]} 3... Bc5 {[%clk 0:04:38]} 4. d3
{[%clk 0:04:43.9]} 4... d6 {[%clk 0:04:30]} 5. Ng5 {[%clk 0:04:38.9]} 5... Nh6
{[%clk 0:04:24.3]} 6. O-O {[%clk 0:04:24.2]} 6... O-O {[%clk 0:04:17.4]} 7. c3
{[%clk 0:04:18.7]} 7... Bg4 {[%clk 0:04:10.9]} 8. Qb3 {[%clk 0:03:57.2]} 8...
Na5 {[%clk 0:04:02.1]} 9. Qa4 {[%clk 0:03:43.1]} 9... Nxc4 {[%clk 0:03:56.6]}
10. dxc4 {[%clk 0:03:38.4]} 10... a5 {[%clk 0:03:51.4]} 11. Qb3 {[%clk
0:03:25.9]} 11... Qf6 {[%clk 0:03:45.6]} 12. Be3 {[%clk 0:03:18.5]} 12... Bxe3
{[%clk 0:03:40.2]} 13. fxe3 {[%clk 0:03:16.6]} 13... Qxg5 {[%clk 0:03:35.3]} 14.
Qxb7 {[%clk 0:03:04.9]} 14... Rab8 {[%clk 0:03:27.4]} 15. Qxc7 {[%clk
0:03:01.1]} 15... Rxb2 {[%clk 0:03:19.7]} 16. Rxf7 {[%clk 0:02:54.7]} 16...
Qxe3+ {[%clk 0:03:12]} 17. Kf1 {[%clk 0:02:41.4]} 17... Qf2+ {[%clk 0:03:11.9]}
18. Rxf2 {[%clk 0:02:37.7]} 18... Rbxf2+ {[%clk 0:02:54]} 19. Ke1 {[%clk
0:02:34]} 19... Re2+ {[%clk 0:02:47.9]} 20. Kd1 {[%clk 0:02:32.5]} 20... Rf1#
{[%clk 0:02:47.1]} 0-1

[Event "Live Chess"]
[Site "Chess.com"]
[Date "2023.05.21"]
[Round "-"]
[White "Tiltador"]
[Black "SupremeTactician"]
[Result "0-1"]
[WhiteElo "859"]
[BlackElo "2288"]
[TimeControl "300"]
[EndTime "1:55:44 PDT"]
[Termination "SupremeTactician won by checkmate"]

1. e4 {[%clk 0:04:56.5]} 1... e5 {[%clk 0:04:59.1]} 2. Nf3 {[%clk 0:04:55.5]}
2... Nc6 {[%clk 0:04:54.5]} 3. Bb5 {[%clk 0:04:53.6]} 3... a6 {[%clk 0:04:53.6]}
4. Bxc6 {[%clk 0:04:52.6]} 4... dxc6 {[%clk 0:04:52.9]} 5. Nxe5 {[%clk
0:04:47.7]} 5... Qd4 {[%clk 0:04:49.1]} 6. Nf3 {[%clk 0:04:35.9]} 6... Qxe4+
{[%clk 0:04:48.3]} 7. Qe2 {[%clk 0:04:33.3]} 7... Qxe2+ {[%clk 0:04:47.7]} 8.
Kxe2 {[%clk 0:04:32.1]} 8... Nf6 {[%clk 0:04:47.6]} 9. d3 {[%clk 0:04:27.5]}
9... Bd6 {[%clk 0:04:47.3]} 10. Be3 {[%clk 0:04:23.4]} 10... O-O {[%clk
0:04:44.5]} 11. Nc3 {[%clk 0:04:22.2]} 11... Be6 {[%clk 0:04:43.3]} 12. Ne4
{[%clk 0:04:19.9]} 12... Nxe4 {[%clk 0:04:42.1]} 13. dxe4 {[%clk 0:04:18.2]}
13... Bc4+ {[%clk 0:04:41.9]} 14. Kd2 {[%clk 0:04:14.8]} 14... Rad8 {[%clk
0:04:40.7]} 15. b3 {[%clk 0:04:11.9]} 15... Bb4+ {[%clk 0:04:38]} 16. Kc1 {[%clk
0:04:02.5]} 16... Ba3+ {[%clk 0:04:37.2]} 17. Kb1 {[%clk 0:04:00.2]} 17... Be6
{[%clk 0:04:34.6]} 18. c4 {[%clk 0:03:54.4]} 18... Bg4 {[%clk 0:04:31.4]} 19.
Kc2 {[%clk 0:03:47.6]} 19... Rfe8 {[%clk 0:04:29.7]} 20. h3 {[%clk 0:03:34.2]}
20... Bxf3 {[%clk 0:04:26.2]} 21. gxf3 {[%clk 0:03:32.1]} 21... Rd7 {[%clk
0:04:24.8]} 22. Rhd1 {[%clk 0:03:26]} 22... Red8 {[%clk 0:04:23.9]} 23. Rxd7
{[%clk 0:03:23.7]} 23... Rxd7 {[%clk 0:04:23.8]} 24. f4 {[%clk 0:03:17.1]} 24...
f6 {[%clk 0:04:21.6]} 25. e5 {[%clk 0:03:14.3]} 25... fxe5 {[%clk 0:04:19.1]}
26. fxe5 {[%clk 0:03:12.6]} 26... Kf7 {[%clk 0:04:19]} 27. h4 {[%clk 0:03:04.7]}
27... Ke6 {[%clk 0:04:16]} 28. f4 {[%clk 0:02:46.4]} 28... g6 {[%clk 0:04:15.1]}
29. Rd1 {[%clk 0:02:35.6]} 29... Rxd1 {[%clk 0:04:13.5]} 30. Kxd1 {[%clk
0:02:34.4]} 30... Be7 {[%clk 0:04:13.4]} 31. Bf2 {[%clk 0:02:29.5]} 31... Kf5
{[%clk 0:04:12.8]} 32. Bg3 {[%clk 0:02:22]} 32... Kg4 {[%clk 0:04:11.8]} 33. Bf2
{[%clk 0:02:04.9]} 33... Kxf4 {[%clk 0:04:10.2]} 34. Ke2 {[%clk 0:02:01]} 34...
Kxe5 {[%clk 0:04:09.3]} 35. Bg3+ {[%clk 0:01:58]} 35... Ke4 {[%clk 0:04:08.8]}
36. Bxc7 {[%clk 0:01:56.5]} 36... Bxh4 {[%clk 0:04:07.8]} 37. Kd1 {[%clk
0:01:48.7]} 37... Bf6 {[%clk 0:04:06.6]} 38. Kc2 {[%clk 0:01:47.1]} 38... h5
{[%clk 0:04:05.5]} 39. a4 {[%clk 0:01:45.6]} 39... g5 {[%clk 0:04:04.6]} 40. Bh2
{[%clk 0:01:38.4]} 40... g4 {[%clk 0:04:03.2]} 41. b4 {[%clk 0:01:24.7]} 41...
h4 {[%clk 0:04:00.6]} 42. b5 {[%clk 0:01:21.5]} 42... g3 {[%clk 0:03:59.3]} 43.
Bg1 {[%clk 0:01:15.7]} 43... h3 {[%clk 0:03:58.3]} 44. bxc6 {[%clk 0:01:11.1]}
44... bxc6 {[%clk 0:03:57.2]} 45. Kb3 {[%clk 0:01:09.3]} 45... h2 {[%clk
0:03:56.1]} 46. Bxh2 {[%clk 0:01:04.2]} 46... gxh2 {[%clk 0:03:55.4]} 47. c5
{[%clk 0:01:02.9]} 47... h1=Q {[%clk 0:03:54.1]} 48. Kc4 {[%clk 0:01:01.7]}
48... Qc1+ {[%clk 0:03:53.3]} 49. Kb4 {[%clk 0:00:58.7]} 49... Qc3# {[%clk
0:03:53.2]} 0-1

[Event "Live Chess"]
[Site "Chess.com"]
[Date "2023.05.21"]
[Round "-"]
[White "elephantgerrald"]
[Black "SteveValentine83"]
[Result "0-1"]
[WhiteElo "705"]
[BlackElo "1533"]
[TimeControl "300"]
[EndTime "1:55:59 PDT"]
[Termination "SteveValentine83 won on time"]

1. e4 {[%clk 0:04:57.8]} 1... d5 {[%clk 0:04:58.9]} 2. exd5 {[%clk 0:04:53.4]}
2... Nf6 {[%clk 0:04:58.2]} 3. c4 {[%clk 0:04:51.5]} 3... e6 {[%clk 0:04:57]} 4.
dxe6 {[%clk 0:04:50]} 4... Bxe6 {[%clk 0:04:56.5]} 5. Qa4+ {[%clk 0:04:46.1]}
5... Nc6 {[%clk 0:04:53.4]} 6. g3 {[%clk 0:04:42.8]} 6... Qe7 {[%clk 0:04:47.7]}
7. Bg2 {[%clk 0:04:40.7]} 7... Bd5+ {[%clk 0:04:41.1]} 8. Be4 {[%clk 0:04:26.6]}
8... Bxe4 {[%clk 0:04:35.9]} 9. f3 {[%clk 0:04:23.6]} 9... Bc2+ {[%clk
0:04:32.5]} 10. Ne2 {[%clk 0:04:14.4]} 10... Bxa4 {[%clk 0:04:31.3]} 11. O-O
{[%clk 0:04:00.2]} 11... Qxe2 {[%clk 0:04:28.4]} 12. Nc3 {[%clk 0:03:32.1]}
12... Bc5+ {[%clk 0:04:24.1]} 13. Kh1 {[%clk 0:03:27.3]} 13... Bc2 {[%clk
0:04:17]} 14. Nxe2 {[%clk 0:02:44.9]} 14... O-O-O {[%clk 0:04:14.8]} 15. Nf4
{[%clk 0:02:11.3]} 15... Bd3 {[%clk 0:04:07.5]} 16. Nxd3 {[%clk 0:01:59.2]}
16... Rxd3 {[%clk 0:04:07.4]} 17. b3 {[%clk 0:01:52.5]} 17... Bd4 {[%clk
0:04:04.3]} 18. Rb1 {[%clk 0:01:38.5]} 18... Ne5 {[%clk 0:04:02.8]} 19. Kg2
{[%clk 0:01:29.4]} 19... Rd8 {[%clk 0:03:54.1]} 20. Ba3 {[%clk 0:01:19.7]} 20...
Rxd2+ {[%clk 0:03:49.5]} 21. Kh3 {[%clk 0:01:15.6]} 21... Ng6 {[%clk 0:03:40.2]}
22. Bb4 {[%clk 0:01:11.9]} 22... Rf2 {[%clk 0:03:32.6]} 23. Rxf2 {[%clk
0:01:08.4]} 23... Bxf2 {[%clk 0:03:32.5]} 24. Be7 {[%clk 0:01:07.2]} 24... Nxe7
{[%clk 0:03:31.1]} 25. Kg2 {[%clk 0:01:04.4]} 25... Bb6 {[%clk 0:03:29.7]} 26.
Re1 {[%clk 0:00:57.6]} 26... Ng6 {[%clk 0:03:27.1]} 27. b4 {[%clk 0:00:45.5]}
27... Rd2+ {[%clk 0:03:25.4]} 28. Kh3 {[%clk 0:00:36.4]} 28... Bf2 {[%clk
0:03:22.4]} 29. Rf1 {[%clk 0:00:32.8]} 29... Rxa2 {[%clk 0:03:20.6]} 30. c5
{[%clk 0:00:15.6]} 30... Nd5 {[%clk 0:03:14.3]} 0-1

[Event "Live Chess"]
[Site "Chess.com"]
[Date "2023.05.21"]
[Round "-"]
[White "JoshMcK"]
[Black "KeithArkell"]
[Result "0-1"]
[WhiteElo "1523"]
[BlackElo "2508"]
[TimeControl "300"]
[EndTime "1:56:00 PDT"]
[Termination "KeithArkell won by checkmate"]

1. e4 {[%clk 0:04:58.5]} 1... c6 {[%clk 0:04:59.2]} 2. d4 {[%clk 0:04:57.1]}
2... d5 {[%clk 0:04:59.1]} 3. e5 {[%clk 0:04:53.9]} 3... c5 {[%clk 0:04:58.5]}
4. Nf3 {[%clk 0:04:50.8]} 4... cxd4 {[%clk 0:04:57.3]} 5. Qxd4 {[%clk
0:04:48.8]} 5... Nc6 {[%clk 0:04:56.6]} 6. Qf4 {[%clk 0:04:47.9]} 6... e6 {[%clk
0:04:50.8]} 7. Bd3 {[%clk 0:04:44.9]} 7... h6 {[%clk 0:04:42.7]} 8. O-O {[%clk
0:04:42.7]} 8... Nge7 {[%clk 0:04:38.1]} 9. Nc3 {[%clk 0:04:38]} 9... a6 {[%clk
0:04:36.4]} 10. a3 {[%clk 0:04:29.3]} 10... g5 {[%clk 0:04:34]} 11. Qg3 {[%clk
0:04:25]} 11... Nf5 {[%clk 0:04:32.4]} 12. Bxf5 {[%clk 0:04:21.9]} 12... exf5
{[%clk 0:04:31.7]} 13. Bxg5 {[%clk 0:04:02.8]} 13... hxg5 {[%clk 0:04:30.1]} 14.
Qxg5 {[%clk 0:04:00.3]} 14... Qxg5 {[%clk 0:04:28.4]} 15. Nxg5 {[%clk
0:04:00.2]} 15... Be6 {[%clk 0:04:26.4]} 16. Nxe6 {[%clk 0:03:55.3]} 16... fxe6
{[%clk 0:04:25]} 17. f4 {[%clk 0:03:54.2]} 17... Nd4 {[%clk 0:04:23.1]} 18. Rac1
{[%clk 0:03:50.3]} 18... Bc5 {[%clk 0:04:21]} 19. Kh1 {[%clk 0:03:46.8]} 19...
Kf7 {[%clk 0:04:20.1]} 20. g3 {[%clk 0:03:44.1]} 20... b5 {[%clk 0:04:14.6]} 21.
b4 {[%clk 0:03:41.2]} 21... Bb6 {[%clk 0:04:13.1]} 22. Rfe1 {[%clk 0:03:28.5]}
22... Rac8 {[%clk 0:04:11.6]} 23. Ne2 {[%clk 0:03:25.7]} 23... Nf3 {[%clk
0:04:07.9]} 24. Rf1 {[%clk 0:03:24.1]} 24... Rxh2# {[%clk 0:04:06.4]} 0-1

[Event "Live Chess"]
[Site "Chess.com"]
[Date "2023.05.21"]
[Round "-"]
[White "Singapourfeuj"]
[Black "Woodpusher500"]
[Result "1-0"]
[WhiteElo "2180"]
[BlackElo "1042"]
[TimeControl "300"]
[EndTime "1:56:06 PDT"]
[Termination "Singapourfeuj won by resignation"]

1. d4 {[%clk 0:04:57.2]} 1... c5 {[%clk 0:04:57.5]} 2. dxc5 {[%clk 0:04:55.3]}
2... e6 {[%clk 0:04:54.8]} 3. Be3 {[%clk 0:04:53.4]} 3... Nf6 {[%clk 0:04:40.5]}
4. Nd2 {[%clk 0:04:50.5]} 4... Nc6 {[%clk 0:04:29.4]} 5. f3 {[%clk 0:04:48.1]}
5... g6 {[%clk 0:04:16.5]} 6. Nh3 {[%clk 0:04:46.7]} 6... d6 {[%clk 0:04:14.1]}
7. cxd6 {[%clk 0:04:45.6]} 7... Bxd6 {[%clk 0:04:11.7]} 8. Bf4 {[%clk
0:04:43.1]} 8... O-O {[%clk 0:04:00.3]} 9. e3 {[%clk 0:04:41.6]} 9... Bxf4
{[%clk 0:03:47.5]} 10. exf4 {[%clk 0:04:39.5]} 10... Re8 {[%clk 0:03:33.4]} 11.
Bd3 {[%clk 0:04:37.8]} 11... e5 {[%clk 0:03:31]} 12. O-O {[%clk 0:04:36.2]}
12... Bxh3 {[%clk 0:03:23.9]} 13. gxh3 {[%clk 0:04:35.2]} 13... exf4 {[%clk
0:03:17.4]} 14. Ne4 {[%clk 0:04:34.1]} 14... Nh5 {[%clk 0:03:04]} 15. Kh1 {[%clk
0:04:25]} 15... Nd4 {[%clk 0:02:46.5]} 16. c3 {[%clk 0:04:21.1]} 16... Nf5
{[%clk 0:02:40.3]} 17. Bc4 {[%clk 0:04:14.7]} 17... Rxe4 {[%clk 0:02:22]} 18.
Qxd8+ {[%clk 0:04:11.8]} 18... Rxd8 {[%clk 0:02:18.9]} 19. fxe4 {[%clk
0:04:10.9]} 19... Nfg3+ {[%clk 0:02:12.4]} 20. hxg3 {[%clk 0:04:09.3]} 20...
Nxg3+ {[%clk 0:02:10.4]} 21. Kg2 {[%clk 0:04:08.3]} 21... Nxf1 {[%clk
0:02:04.7]} 22. Rxf1 {[%clk 0:04:06.7]} 22... g5 {[%clk 0:02:01.6]} 23. Rf2
{[%clk 0:04:05.3]} 23... Re8 {[%clk 0:01:57.1]} 24. Bd5 {[%clk 0:04:04.1]} 24...
Re5 {[%clk 0:01:49.6]} 25. h4 {[%clk 0:04:01.6]} 25... h6 {[%clk 0:01:46]} 26.
c4 {[%clk 0:04:00.4]} 26... Kg7 {[%clk 0:01:37.3]} 27. Kf3 {[%clk 0:03:59.6]}
27... f5 {[%clk 0:01:30.1]} 28. exf5 {[%clk 0:03:58]} 28... Rxf5 {[%clk
0:01:22]} 29. hxg5 {[%clk 0:03:57.3]} 29... hxg5 {[%clk 0:01:19.7]} 30. Kg4
{[%clk 0:03:56.2]} 30... Kg6 {[%clk 0:01:15.9]} 31. Be4 {[%clk 0:03:54.7]} 31...
Kf6 {[%clk 0:01:13.2]} 32. Bxf5 {[%clk 0:03:51.5]} 1-0

[Event "Live Chess"]
[Site "Chess.com"]
[Date "2023.05.21"]
[Round "-"]
[White "domrobson"]
[Black "chekagain"]
[Result "0-1"]
[WhiteElo "1731"]
[BlackElo "830"]
[TimeControl "300"]
[EndTime "1:56:07 PDT"]
[Termination "chekagain won by checkmate"]

1. d4 {[%clk 0:04:58.8]} 1... e5 {[%clk 0:04:58.4]} 2. dxe5 {[%clk 0:04:57.8]}
2... Nc6 {[%clk 0:04:57.4]} 3. Nf3 {[%clk 0:04:57.2]} 3... Qe7 {[%clk
0:04:56.5]} 4. Bg5 {[%clk 0:04:56]} 4... f6 {[%clk 0:04:53.7]} 5. exf6 {[%clk
0:04:52.9]} 5... gxf6 {[%clk 0:04:52.6]} 6. Bd2 {[%clk 0:04:50.7]} 6... Bh6
{[%clk 0:04:46]} 7. Nc3 {[%clk 0:04:47]} 7... Bxd2+ {[%clk 0:04:43.5]} 8. Qxd2
{[%clk 0:04:46]} 8... d6 {[%clk 0:04:38.4]} 9. e3 {[%clk 0:04:44.2]} 9... Bf5
{[%clk 0:04:36.3]} 10. Be2 {[%clk 0:04:40]} 10... Nb4 {[%clk 0:04:34]} 11. Bd3
{[%clk 0:04:33.3]} 11... Nxd3+ {[%clk 0:04:31.9]} 12. cxd3 {[%clk 0:04:32.1]}
12... c5 {[%clk 0:04:29.9]} 13. O-O {[%clk 0:04:27.8]} 13... O-O-O {[%clk
0:04:28.8]} 14. e4 {[%clk 0:04:26.4]} 14... Kb8 {[%clk 0:04:28.3]} 15. exf5
{[%clk 0:04:25.2]} 15... Nh6 {[%clk 0:04:26.3]} 16. Qxh6 {[%clk 0:04:23.3]}
16... Rde8 {[%clk 0:04:23.1]} 17. Qf4 {[%clk 0:04:20.5]} 17... Qc7 {[%clk
0:04:18.5]} 18. Nd5 {[%clk 0:04:19.4]} 18... Qc6 {[%clk 0:04:12.3]} 19. Nxf6
{[%clk 0:04:16.7]} 19... Ref8 {[%clk 0:04:06.2]} 20. Ne4 {[%clk 0:04:15.7]}
20... Rhg8 {[%clk 0:04:03.2]} 21. Nxd6 {[%clk 0:04:13.1]} 21... Rg7 {[%clk
0:03:57.8]} 22. f6 {[%clk 0:03:57.9]} 22... Rgg8 {[%clk 0:03:41.5]} 23. Ne4+
{[%clk 0:03:39.7]} 23... Kc8 {[%clk 0:03:37.9]} 24. Ne5 {[%clk 0:03:38]} 24...
Rxf6 {[%clk 0:03:25.8]} 25. Nxf6 {[%clk 0:03:35.4]} 25... Qxg2# {[%clk
0:03:22.3]} 0-1

[Event "Live Chess"]
[Site "Chess.com"]
[Date "2023.05.21"]
[Round "-"]
[White "DRS44"]
[Black "OleksiyJr1"]
[Result "1-0"]
[WhiteElo "1324"]
[BlackElo "976"]
[TimeControl "300"]
[EndTime "1:56:15 PDT"]
[Termination "DRS44 won by resignation"]

1. e4 {[%clk 0:04:52.3]} 1... c5 {[%clk 0:04:59.5]} 2. c3 {[%clk 0:04:42.9]}
2... Nc6 {[%clk 0:04:58.4]} 3. d4 {[%clk 0:04:38.6]} 3... cxd4 {[%clk
0:04:58.3]} 4. cxd4 {[%clk 0:04:36.2]} 4... e6 {[%clk 0:04:57.7]} 5. Nc3 {[%clk
0:04:30.1]} 5... d5 {[%clk 0:04:57.6]} 6. e5 {[%clk 0:04:22.3]} 6... f6 {[%clk
0:04:55.4]} 7. Nf3 {[%clk 0:04:12.8]} 7... Bb4 {[%clk 0:04:50.8]} 8. Bd3 {[%clk
0:04:07.5]} 8... Qb6 {[%clk 0:04:47.6]} 9. O-O {[%clk 0:04:00.8]} 9... Nxd4
{[%clk 0:04:44.1]} 10. Nxd4 {[%clk 0:03:54.4]} 10... Qxd4 {[%clk 0:04:44]} 11.
Bb5+ {[%clk 0:03:47.1]} 1-0